bitfinex/quotes_SOLUSD_20240808
["timestamp","ask_amount","ask_price","bid_price","bid_amount"]
[1723113417974,45.0,153.64,153.55,20.0]
[1723113418475,45.0,153.64,153.56,0.17]
[1723113418672,45.0,153.64,153.55,20.0]
[1723113419954,45.0,153.63,153.56,0.17]
[1723113420163,45.0,153.64,153.56,0.17]
[1723113422855,45.0,153.64,153.55,20.0]
[1723113423056,45.0,153.63,153.54,0.17]
[1723113423249,45.0,153.63,153.55,0.17]
[1723113423450,45.0,153.64,153.55,0.34]
[1723113423681,45.0,153.63,153.55,0.34]
[1723113423973,45.0,153.63,153.54,0.34]
[1723113424172,45.0,153.64,153.54,0.34]
[1723113425453,51.5088,153.64,153.54,0.34]
[1723113425653,51.5088,153.64,153.54,0.17]
[1723113426165,28.46,153.63,153.54,0.17]
[1723113426476,28.46,153.63,153.5,10.20530048]
[1723113426477,13.0477,153.6,153.49,14.94106156]
[1723113426651,6.5371,153.6,153.49,14.94106156]
[1723113427081,6.5371,153.6,153.49,16.24353417]
[1723113427281,6.5371,153.6,153.49,44.70353417]
[1723113427979,6.5371,153.6,153.5,0.34]
[1723113428279,45.0,153.59,153.5,20.34]
[1723113428453,45.0,153.59,153.5,21.64254342]
[1723113428658,6.5371,153.6,153.51,29.76253699]
[1723113428870,6.5371,153.6,153.52,20.17]
[1723113429055,389.6306,153.64,153.53,1.30225966]
[1723113429255,389.6306,153.64,153.54,0.34]
[1723113430168,45.0,153.63,153.53,1.30225966]
[1723113430362,28.46,153.61,153.49,43.40106156]
[1723113430565,6.5114,153.58,153.49,14.94106156]
[1723113430755,6.5111,153.59,153.49,14.94106156]
[1723113430955,22.9824,153.57,153.49,14.94106156]
[1723113431677,383.2,153.59,153.51,28.46]
[1723113431889,383.2,153.59,153.53,28.46]
[1723113432050,383.2,153.59,153.54,36.70549162]
[1723113432254,383.2,153.59,153.55,0.34]
[1723113432687,383.2,153.59,153.55,28.8]
[1723113433859,383.2,153.59,153.58,28.46]
[1723113434193,22.4055,153.66,153.58,28.8]
[1723113434479,22.4055,153.66,153.56,28.46]
[1723113434790,22.4055,153.66,153.57,20.34]
[1723113434976,57.3734,153.66,153.57,20.0]
[1723113435183,50.8655,153.66,153.56,0.34]
[1723113435871,21.9055,153.66,153.56,0.34]
[1723113436069,302.095,153.7,153.58,28.46]
[1723113436287,6.4285,153.7,153.6,28.46]
[1723113436588,383.2,153.73,153.62,28.46]
[1723113436786,6.1997,153.74,153.63,21.64135003]
[1723113436993,6.1997,153.74,153.63,20.34]
[1723113437162,12.7042,153.74,153.63,20.34]
[1723113437562,34.6597,153.74,153.63,20.34]
[1723113437790,45.0,153.73,153.63,20.34]
[1723113437992,51.505,153.73,153.63,20.34]
[1723113438189,34.6597,153.74,153.63,20.34]
[1723113438365,6.77273203,153.76,153.66,28.46]
[1723113438569,383.2,153.77,153.67,21.64107106]
[1723113438785,383.2,153.77,153.68,29.76106432]
[1723113438981,383.2,153.77,153.69,0.17]
[1723113439289,6.5032,153.77,153.68,28.46]
[1723113439482,6.5032,153.77,153.67,20.17]
[1723113439483,28.46,153.77,153.67,20.17]
[1723113439679,6.5041,153.75,153.66,20.0]
[1723113440288,28.46,153.75,153.61,50.2559]
[1723113440468,6.505,153.73,153.61,50.2559]
[1723113440670,45.0,153.72,153.61,50.2559]
[1723113440982,389.7046,153.74,153.61,50.2559]
[1723113441308,418.1646,153.74,153.61,50.2559]
[1723113441889,45.17,153.73,153.62,21.30102158]
[1723113442069,45.17,153.73,153.62,20.0]
[1723113442480,51.675,153.73,153.62,20.0]
[1723113442683,6.5053,153.72,153.62,20.0]
[1723113442886,45.0,153.71,153.62,20.0]
[1723113443882,383.2,153.73,153.62,20.0]
[1723113444075,383.2,153.73,153.63,0.17]
[1723113444279,383.2,153.73,153.62,20.0]
[1723113444280,45.0,153.72,153.62,20.0]
[1723113444995,67.5862,153.72,153.62,20.0]
[1723113445400,472.7409,153.72,153.61,21.7959]
[1723113445598,34.8436,153.7,153.57,50.5853]
[1723113445783,28.46,153.68,153.57,50.5853]
[1723113445981,34.9673,153.68,153.57,22.1253]
[1723113446275,45.34,153.69,153.53,50.2729]
[1723113446276,28.46,153.66,153.53,50.2729]
[1723113446474,51.5084,153.65,153.53,50.2729]
[1723113447081,28.46,153.62,153.51,28.46]
[1723113447274,45.0,153.61,153.51,28.46]
[1723113447786,45.0,153.61,153.49,36.71036156]
[1723113447986,6.3444,153.63,153.49,38.01242051]
[1723113447987,45.0,153.62,153.49,38.01242051]
[1723113448305,6.3444,153.63,153.5,45.0]
[1723113448481,6.3444,153.63,153.51,1.47197159]
[1723113448681,6.3444,153.63,153.52,0.17]
[1723113448886,6.3444,153.63,153.51,20.0]
[1723113449082,6.3444,153.63,153.5,20.0]
[1723113449276,399.0353,153.64,153.5,20.0]
[1723113449493,383.2,153.64,153.5,20.0]
[1723113450206,6.5099,153.62,153.49,36.71036156]
[1723113450382,45.0,153.61,153.49,36.71036156]
[1723113450585,45.34,153.63,153.49,36.71036156]
[1723113450891,6.2735,153.6,153.49,14.94106156]
[1723113451404,45.34,153.59,153.45,21.9674]
[1723113451581,6.5126,153.55,153.45,21.9674]
[1723113451778,45.0,153.54,153.45,21.9674]
[1723113451982,45.0,153.54,153.45,15.792]
[1723113452385,6.5129,153.54,153.45,15.792]
[1723113452578,45.34,153.53,153.45,15.792]
[1723113452782,45.0,153.53,153.45,15.792]
[1723113453303,383.2,153.58,153.46,1.30305862]
[1723113453481,383.2,153.58,153.46,1.30268]
[1723113453681,383.2,153.58,153.45,15.792]
[1723113453885,45.0,153.57,153.46,20.34]
[1723113454079,45.0,153.57,153.46,21.64271904]
[1723113454284,45.0,153.57,153.46,20.34]
[1723113455019,45.0,153.57,153.47,1.30277066]
[1723113455212,45.0,153.57,153.48,0.34]
[1723113455411,45.0,153.57,153.46,20.34]
[1723113455917,45.0,153.58,153.47,1.3027202]
[1723113456216,45.0,153.58,153.48,0.34]
[1723113456417,45.0,153.58,153.46,20.34]
[1723113456593,45.0,153.58,153.47,6.196]
[1723113456801,643.9,153.61,153.48,103.33011401]
[1723113457002,6.5091,153.63,153.49,1.3000293]
[1723113457194,19.69267455,153.64,153.5,0.34]
[1723113457510,13.18387455,153.64,153.5,0.34]
[1723113457817,6.4148,153.64,153.51,1.30224658]
[1723113458116,6.4148,153.64,153.52,0.17]
[1723113458307,12.9235,153.64,153.52,0.17]
[1723113458614,6.5082,153.66,153.53,16.0751]
[1723113458832,6.5083,153.65,153.54,20.34]
[1723113459198,383.2,153.67,153.54,20.0]
[1723113459411,6.5083,153.65,153.54,20.0]
[1723113459795,6.5087,153.64,153.54,20.0]
[1723113460095,0.17,153.65,153.54,20.0]
[1723113460413,6.5084,153.65,153.54,20.0]
[1723113460612,45.0,153.64,153.54,20.0]
[1723113460790,51.8481,153.66,153.55,0.34]
[1723113461111,51.8481,153.66,153.54,20.0]
[1723113461310,45.34,153.66,153.54,21.30186784]
[1723113461519,45.34,153.66,153.55,0.17]
[1723113461709,383.2,153.67,153.56,6.4931]
[1723113461906,383.2,153.67,153.57,0.34]
[1723113462108,383.2,153.67,153.57,20.34]
[1723113462420,389.7074,153.67,153.57,20.34]
[1723113462599,383.2,153.67,153.57,20.34]
[1723113463333,6.3098,153.72,153.57,20.34]
[1723113464010,6.5058,153.71,153.57,20.34]
[1723113465104,45.0,153.7,153.57,20.34]
[1723113465504,45.0,153.71,153.57,20.34]
[1723113466199,389.97230409,153.73,153.59,15.5148]
[1723113466530,260.7,153.75,153.6,43.16030209]
[1723113466704,260.7,153.75,153.61,46.30142046]
[1723113466904,6.2536,153.76,153.62,57.03]
[1723113467108,389.7024,153.79,153.63,46.30115737]
[1723113467307,383.2,153.79,153.65,6.1768]
[1723113467625,383.2,153.79,153.66,21.64109013]
[1723113467831,405.3521,153.8,153.66,20.17]
[1723113468122,6.77285566,153.79,153.66,20.0]
[1723113468341,6.5039,153.76,153.66,20.0]
[1723113468631,6.77285566,153.79,153.66,20.0]
[1723113468921,0.17,153.78,153.66,20.0]
[1723113469132,45.34,153.78,153.66,20.0]
[1723113469322,6.5052,153.73,153.65,6.1768]
[1723113469521,45.0,153.72,153.65,6.1768]
[1723113470116,45.0,153.73,153.65,6.1768]
[1723113470320,51.505,153.73,153.65,6.1768]
[1723113470526,0.34,153.72,153.65,6.1768]
[1723113470734,45.0,153.73,153.65,6.1768]
[1723113472625,389.7035,153.77,153.65,6.1768]
[1723113473215,383.2,153.77,153.65,6.1768]
[1723113473416,36.69,153.75,153.64,16.517]
[1723113473630,389.7045,153.74,153.64,16.517]
[1723113473812,6.5057,153.72,153.64,16.517]
[1723113474014,45.34,153.71,153.64,16.517]
[1723113474434,51.8458,153.71,153.64,16.517]
[1723113474941,6.5065,153.7,153.64,16.517]
[1723113475109,45.0,153.69,153.61,6.3593]
[1723113475523,6.8458,153.71,153.61,6.3593]
[1723113475524,45.0,153.7,153.61,6.3593]
[1723113478019,45.0,153.7,153.62,0.17]
[1723113478211,389.7049,153.73,153.62,0.34]
[1723113478413,45.0,153.72,153.62,0.34]
[1723113479326,51.5053,153.72,153.62,0.34]
[1723113480113,45.0,153.72,153.61,6.3593]
[1723113480343,51.5057,153.72,153.61,6.3593]
[1723113483146,45.0,153.72,153.61,6.3593]
[1723113483329,0.17,153.71,153.61,6.3593]
[1723113483527,6.846,153.71,153.61,6.3593]
[1723113483732,45.0,153.7,153.61,6.3593]
[1723113483926,0.17,153.69,153.61,6.3593]
[1723113484137,6.6766,153.69,153.61,6.3593]
[1723113484428,45.0,153.68,153.61,6.3593]
[1723113486619,51.5071,153.68,153.61,6.3593]
[1723113487126,45.0,153.68,153.6,15.3051]
[1723113487321,35.3575,153.67,153.6,15.3051]
[1723113487635,45.0,153.66,153.6,15.3051]
[1723113488444,51.5079,153.66,153.6,15.3051]
[1723113488630,45.0,153.66,153.6,15.3051]
[1723113490348,35.0166,153.69,153.6,15.3051]
[1723113490547,45.0,153.68,153.6,15.3051]
[1723113491348,6.508,153.66,153.6,15.3051]
[1723113491558,45.0,153.65,153.6,15.3051]
[1723113492028,45.0,153.66,153.6,15.3051]
[1723113492630,6.5064,153.7,153.6,15.3051]
[1723113492850,0.17,153.69,153.6,15.3051]
[1723113493328,383.2,153.71,153.61,1.30015853]
[1723113493639,383.2,153.71,153.61,20.0]
[1723113495236,45.0,153.7,153.61,20.0]
[1723113497447,45.0,153.71,153.61,20.0]
[1723113498129,383.2,153.72,153.63,6.4172]
[1723113498324,6.5041,153.75,153.63,6.4172]
[1723113498540,424.2633,153.76,153.64,28.85]
[1723113499052,389.7037,153.76,153.65,15.1415]
[1723113499366,260.7,153.79,153.69,15.1415]
[1723113499654,411.71,153.82,153.7,50.15092191]
[1723113499840,411.71,153.82,153.7,48.85]
[1723113501333,6.5015,153.81,153.7,48.85]
[1723113501541,411.71,153.82,153.71,1.30016694]
[1723113501743,411.71,153.82,153.69,15.1415]
[1723113501744,28.51,153.8,153.69,15.1415]
[1723113501948,383.2,153.82,153.68,14.9225894]
[1723113501949,28.51,153.72,153.68,14.9225894]
[1723113502159,28.51,153.72,153.65,16.4991]
[1723113502160,35.0154,153.72,153.65,16.4991]
[1723113502862,51.5058,153.71,153.65,16.4991]
[1723113503073,45.0,153.71,153.65,16.4991]
[1723113504350,45.0,153.72,153.65,16.4991]
[1723113504663,6.506,153.71,153.65,16.4991]
[1723113504851,45.0,153.7,153.65,16.4991]
[1723113505051,383.2,153.75,153.65,16.4991]
[1723113505633,389.7044,153.75,153.65,16.4991]
[1723113506032,383.2,153.75,153.65,16.4991]
[1723113506236,383.2,153.74,153.65,16.4991]
[1723113506655,6.5057,153.72,153.65,16.4991]
[1723113506960,45.0,153.71,153.65,16.4991]
[1723113507149,45.0,153.71,153.61,29.98398962]
[1723113507350,0.17,153.7,153.61,29.98398962]
[1723113507554,0.34,153.7,153.61,29.98398962]
[1723113507760,51.5057,153.71,153.61,29.98398962]
[1723113507943,45.0,153.71,153.61,29.98398962]
[1723113508339,6.5066,153.69,153.61,29.98398962]
[1723113508538,45.0,153.68,153.61,29.98398962]
[1723113509058,6.6762,153.7,153.61,29.98398962]
[1723113509059,45.0,153.69,153.61,29.98398962]
[1723113509435,0.17,153.72,153.61,29.98398962]
[1723113509652,383.2,153.73,153.62,0.34]
[1723113510463,383.2,153.73,153.63,6.005]
[1723113510658,383.2,153.73,153.65,15.7041]
[1723113510838,6.5024,153.79,153.66,20.34]
[1723113511261,383.2,153.81,153.66,20.34]
[1723113511262,6.5028,153.78,153.66,20.34]
[1723113511766,6.5024,153.79,153.66,20.34]
[1723113512072,383.2,153.81,153.67,6.6156]
[1723113512245,6.5037,153.76,153.67,6.6156]
[1723113512443,6.5033,153.77,153.67,6.6156]
[1723113512638,383.2,153.81,153.67,6.6156]
[1723113512639,6.5038,153.76,153.67,6.6156]
[1723113512851,45.0,153.75,153.67,6.6156]
[1723113513562,51.5044,153.75,153.67,6.6156]
[1723113513743,6.5045,153.74,153.67,6.6156]
[1723113514071,45.17,153.73,153.65,15.7041]
[1723113514447,6.6753,153.72,153.65,15.7041]
[1723113514645,45.0,153.71,153.65,15.7041]
[1723113514874,383.2,153.73,153.65,17.00487751]
[1723113515044,6.5024,153.79,153.65,17.0048775]
[1723113515241,6.5024,153.79,153.65,17.00515632]
[1723113515464,6.5024,153.79,153.66,0.34]
[1723113515844,6.5028,153.78,153.66,0.34]
[1723113516042,6.5035,153.77,153.66,0.34]
[1723113516249,6.5035,153.77,153.66,20.34]
[1723113516467,45.0,153.76,153.66,20.34]
[1723113517243,6.5031,153.78,153.66,20.34]
[1723113517551,389.96337473,153.81,153.66,20.34]
[1723113517552,51.5032,153.77,153.66,20.34]
[1723113518565,45.0,153.77,153.66,20.34]
[1723113518913,45.0,153.77,153.66,21.64054912]
[1723113519050,45.0,153.78,153.66,21.64054912]
[1723113519250,6.5024,153.79,153.67,51.5902]
[1723113519560,6.5024,153.79,153.7,6.6465]
[1723113519748,6.76337473,153.81,153.71,21.64014168]
[1723113519948,399.45,153.85,153.71,21.64014168]
[1723113521271,45.34,153.82,153.71,21.64014168]
[1723113521469,45.34,153.82,153.71,20.0]
[1723113521878,6.5019,153.8,153.71,20.0]
[1723113522065,45.0,153.79,153.71,20.0]
[1723113522461,45.0,153.8,153.71,20.0]
[1723113522661,267.2007,153.83,153.72,1.6396342]
[1723113522977,51.5011,153.82,153.72,0.34]
[1723113523165,6.5015,153.81,153.72,0.34]
[1723113523555,45.0,153.82,153.71,20.0]
[1723113523556,6.502,153.8,153.71,20.0]
[1723113523750,383.2,153.85,153.71,20.0]
[1723113523751,45.0,153.79,153.71,20.0]
[1723113523955,51.5023,153.79,153.71,20.0]
[1723113524197,6.5028,153.78,153.7,6.6465]
[1723113524655,45.0,153.77,153.7,6.6465]
[1723113524970,51.5033,153.77,153.7,6.6465]
[1723113525558,45.0,153.77,153.69,15.3448]
[1723113525760,6.5041,153.75,153.69,15.3448]
[1723113525963,45.0,153.74,153.69,15.3448]
[1723113526171,6.5033,153.77,153.69,15.3448]
[1723113526369,51.5037,153.76,153.69,15.3448]
[1723113526684,6.5037,153.76,153.69,15.3448]
[1723113526879,45.0,153.75,153.69,15.3448]
[1723113527175,6.5045,153.74,153.69,15.3448]
[1723113527377,45.0,153.73,153.69,15.3448]
[1723113527777,45.0,153.74,153.69,15.3448]
[1723113528092,6.5054,153.72,153.66,6.0263]
[1723113528295,45.0,153.71,153.66,6.0263]
[1723113528590,45.0,153.71,153.65,16.0565]
[1723113528796,6.8465,153.7,153.62,6.0745]
[1723113528986,45.0,153.69,153.62,6.0745]
[1723113530800,45.0,153.7,153.62,6.0745]
[1723113531174,6.5066,153.69,153.62,6.0745]
[1723113531376,45.0,153.68,153.62,6.0745]
[1723113531572,6.5078,153.67,153.61,30.98588962]
[1723113531775,45.17,153.66,153.58,6.1534]
[1723113532003,45.0,153.66,153.58,6.1534]
[1723113533373,51.5079,153.66,153.58,6.1534]
[1723113533798,45.0,153.66,153.58,6.1534]
[1723113534004,45.0,153.67,153.58,6.1534]
[1723113534204,6.5074,153.67,153.58,6.1534]
[1723113534412,45.0,153.66,153.58,6.1534]
[1723113534907,45.0,153.66,153.57,16.3368]
[1723113535200,0.34,153.65,153.57,16.3368]
[1723113536303,6.509,153.64,153.57,16.3368]
[1723113536503,45.0,153.63,153.57,16.3368]
[1723113536703,51.2771,153.63,153.54,14.93619604]
[1723113537001,6.5108,153.59,153.53,16.1065]
[1723113537201,0.34,153.62,153.53,16.1065]
[1723113537202,6.5104,153.6,153.53,16.1065]
[1723113537499,45.0,153.58,153.53,16.1065]
[1723113537891,45.0,153.59,153.53,16.1065]
[1723113538383,51.511,153.59,153.53,16.1065]
[1723113539283,45.0,153.59,153.53,16.1065]
[1723113541088,51.5108,153.59,153.53,16.1065]
[1723113541823,6.5112,153.58,153.53,16.1065]
[1723113541989,45.0,153.57,153.53,16.1065]
[1723113542510,45.0,153.58,153.53,16.1065]
[1723113543785,51.5109,153.59,153.5,21.1395882]
[1723113544526,0.17,153.58,153.5,6.1995]
[1723113544691,6.5118,153.57,153.5,6.1995]
[1723113544890,45.0,153.56,153.5,6.1995]
[1723113545313,45.0,153.57,153.49,16.2686]
[1723113545509,45.34,153.58,153.49,16.2686]
[1723113545717,6.5117,153.57,153.49,16.2686]
[1723113545898,45.0,153.56,153.49,16.2686]
[1723113546291,51.5121,153.56,153.49,16.2686]
[1723113546495,6.6826,153.55,153.49,16.2686]
[1723113546701,6.6826,153.55,153.47,6.389]
[1723113546702,51.513,153.54,153.47,6.389]
[1723113547196,45.0,153.54,153.47,6.389]
[1723113547394,45.0,153.55,153.47,6.389]
[1723113547595,389.7117,153.57,153.47,6.389]
[1723113547819,45.0,153.56,153.47,6.389]
[1723113549110,51.5123,153.56,153.47,6.389]
[1723113549422,6.5126,153.55,153.47,6.389]
[1723113549598,51.6832,153.54,153.47,6.389]
[1723113549799,51.5124,153.56,153.47,6.389]
[1723113550123,6.5134,153.53,153.47,6.389]
[1723113550319,45.0,153.52,153.47,6.389]
[1723113551304,45.0,153.53,153.47,6.389]
[1723113552004,390.00716231,153.56,153.47,6.389]
[1723113552322,383.2,153.56,153.47,6.389]
[1723113552723,383.2,153.56,153.48,15.3611]
[1723113553027,383.2,153.56,153.48,43.9311]
[1723113553235,383.2,153.56,153.49,0.34]
[1723113553532,6.5104,153.6,153.49,0.34]
[1723113553533,28.57,153.61,153.49,0.34]
[1723113553739,56.8225,153.63,153.5,28.57]
[1723113553899,6.5096,153.62,153.51,0.34]
[1723113554104,6.5096,153.62,153.52,21.3084]
[1723113555110,6.5088,153.64,153.53,21.3084]
[1723113555311,411.77,153.69,153.56,28.57]
[1723113555510,6.5073,153.68,153.57,20.0]
[1723113555710,28.57,153.69,153.57,20.0]
[1723113556109,6.5082,153.66,153.57,20.0]
[1723113556307,28.57,153.67,153.57,20.0]
[1723113556609,28.57,153.67,153.56,20.34]
[1723113556815,28.57,153.67,153.57,0.34]
[1723113557324,35.0774,153.67,153.57,0.34]
[1723113557514,6.5078,153.66,153.56,20.0]
[1723113557821,6.80147585,153.7,153.56,20.0]
[1723113558009,6.5096,153.62,153.55,15.1984]
[1723113558326,6.5097,153.62,153.55,15.1984]
[1723113558711,45.0,153.61,153.55,15.1984]
[1723113559029,45.0,153.62,153.55,15.1984]
[1723113559606,6.5108,153.59,153.55,15.1984]
[1723113560122,6.5105,153.6,153.55,15.1984]
[1723113560318,45.0,153.59,153.55,15.1984]
[1723113560923,6.8493,153.63,153.55,15.1984]
[1723113561128,45.0,153.62,153.55,15.1984]
[1723113561326,51.5096,153.62,153.55,15.1984]
[1723113562528,6.5101,153.61,153.55,15.1984]
[1723113562732,51.5104,153.6,153.55,15.1984]
[1723113563232,45.0,153.6,153.55,15.1984]
[1723113565012,45.0,153.61,153.55,15.1984]
[1723113565621,15.0466,153.66,153.55,15.1984]
[1723113565815,6.5079,153.66,153.55,15.1984]
[1723113566023,6.5075,153.67,153.55,15.1984]
[1723113566216,6.5079,153.66,153.56,0.34]
[1723113566609,6.5074,153.67,153.56,0.34]
[1723113566809,6.5071,153.68,153.56,0.34]
[1723113567028,6.5075,153.67,153.56,20.34]
[1723113567226,6.5079,153.66,153.56,20.34]
[1723113567424,6.5074,153.67,153.56,20.0]
[1723113567816,6.5074,153.67,153.57,0.34]
[1723113568725,6.5079,153.66,153.56,20.0]
[1723113568926,6.5087,153.64,153.55,15.1984]
[1723113569136,45.0,153.63,153.55,15.1984]
[1723113569507,6.5079,153.66,153.56,0.17]
[1723113569720,45.0,153.65,153.56,0.17]
[1723113570313,45.0,153.65,153.56,0.34]
[1723113570530,51.508,153.66,153.56,0.34]
[1723113570733,51.5079,153.66,153.56,0.34]
[1723113571315,45.0,153.66,153.56,0.34]
[1723113572439,51.508,153.66,153.56,0.34]
[1723113573141,45.0,153.66,153.56,0.34]
[1723113573713,45.0,153.67,153.56,20.34]
[1723113573913,6.5071,153.68,153.56,20.34]
[1723113574127,6.5066,153.69,153.58,16.2985]
[1723113574333,6.5058,153.71,153.6,22.681]
[1723113574535,6.5052,153.73,153.61,1.64168718]
[1723113574719,6.5052,153.73,153.61,21.64168718]
[1723113575116,6.5053,153.72,153.61,20.34]
[1723113576216,6.505,153.73,153.62,16.0975]
[1723113576416,6.5053,153.72,153.63,0.34]
[1723113577019,16.2605,153.75,153.62,16.0975]
[1723113577233,6.5083,153.65,153.62,16.0975]
[1723113578341,6.5083,153.65,153.6,6.3825]
[1723113578638,51.733,153.71,153.6,6.3825]
[1723113578848,6.5071,153.68,153.6,6.3825]
[1723113579052,45.0,153.67,153.6,6.3825]
[1723113579622,51.5076,153.67,153.6,6.3825]
[1723113579823,45.0,153.67,153.6,6.3825]
[1723113580025,6.5079,153.66,153.58,15.8603]
[1723113580327,45.0,153.65,153.58,15.8603]
[1723113580721,0.17,153.68,153.58,15.8603]
[1723113580922,45.34,153.69,153.58,15.8603]
[1723113581150,6.5079,153.66,153.58,15.8603]
[1723113582536,45.0,153.65,153.58,15.8603]
[1723113584425,383.2,153.7,153.59,0.17]
[1723113584642,6.5067,153.69,153.59,0.34]
[1723113585258,6.507,153.68,153.59,0.34]
[1723113585744,383.2,153.7,153.59,0.34]
[1723113585951,383.2,153.7,153.6,1.30170705]
[1723113586148,383.2,153.7,153.62,15.5406]
[1723113586457,383.2,153.7,153.63,0.34]
[1723113587728,6.507,153.68,153.62,15.5406]
[1723113588045,6.5079,153.66,153.62,15.5406]
[1723113588254,6.5075,153.67,153.62,15.5406]
[1723113588434,6.5091,153.63,153.52,21.2881]
[1723113588845,6.5088,153.64,153.52,21.2881]
[1723113589044,45.0,153.63,153.52,21.2881]
[1723113590369,53.1081,153.68,153.52,21.2881]
[1723113590537,45.17,153.67,153.52,21.2881]
[1723113590860,0.17,153.66,153.52,21.2881]
[1723113591761,6.6779,153.66,153.53,1.30228819]
[1723113591942,45.0,153.65,153.53,1.30228819]
[1723113592327,51.5083,153.65,153.54,0.34]
[1723113592632,51.5083,153.65,153.54,20.34]
[1723113593051,45.0,153.65,153.54,20.34]
[1723113593254,419.87,153.68,153.55,16.5959]
[1723113593553,45.0,153.67,153.55,16.5959]
[1723113593755,0.17,153.66,153.55,16.5959]
[1723113594460,0.34,153.66,153.55,16.5959]
[1723113594838,6.5092,153.63,153.55,16.5959]
[1723113595361,0.34,153.66,153.55,16.5959]
[1723113595362,6.5087,153.64,153.55,16.5959]
[1723113595535,45.0,153.63,153.55,16.5959]
[1723113596634,45.0,153.64,153.55,16.5959]
[1723113597370,6.5099,153.62,153.55,16.5959]
[1723113597538,45.0,153.61,153.55,16.5959]
[1723113598634,399.469,153.67,153.55,16.5959]
[1723113598940,45.34,153.66,153.55,16.5959]
[1723113600357,6.5088,153.64,153.55,16.5959]
[1723113600558,6.5097,153.62,153.55,16.5959]
[1723113600863,45.0,153.61,153.55,16.5959]
[1723113601238,406.26703157,153.67,153.55,16.5959]
[1723113601444,45.34,153.66,153.55,16.5959]
[1723113601857,28.54,153.63,153.55,16.5959]
[1723113602051,28.54,153.65,153.55,16.5959]
[1723113602256,28.54,153.65,153.56,0.34]
[1723113602557,418.2475,153.67,153.57,6.6293]
[1723113602740,383.2,153.67,153.58,0.17]
[1723113602939,383.2,153.67,153.58,0.34]
[1723113603144,383.2,153.67,153.59,15.2097]
[1723113603462,28.54,153.71,153.61,6.6293]
[1723113603660,6.5045,153.74,153.63,15.2097]
[1723113603836,6.505,153.73,153.64,0.34]
[1723113604255,6.5054,153.72,153.63,15.2097]
[1723113605063,6.5049,153.73,153.64,0.34]
[1723113605255,6.5045,153.74,153.64,0.34]
[1723113605563,51.505,153.73,153.64,0.17]
[1723113605739,45.0,153.73,153.64,0.17]
[1723113605938,51.5049,153.73,153.64,0.17]
[1723113606165,6.5054,153.72,153.63,15.2097]
[1723113606959,45.0,153.73,153.64,0.34]
[1723113607683,45.0,153.74,153.64,0.34]
[1723113607978,51.5045,153.74,153.64,0.34]
[1723113608741,45.0,153.74,153.64,0.34]